[Event "Titled Tuesday Blitz March 22 Early 2022"]
[White "Migot, Tangi"]
[Black "Indjic, Aleksandar"]
[WhiteFideId "662445"]
[BlackFideId "911925"]
[WhiteElo "2528"]
[BlackElo "2616"]
[Result "0-1"]
[Round "09"]
[TimeControl "180+1"]
[Date "2022.03.22"]
[WhiteClock "0:00:30"]
[BlackClock "0:00:37"]

1. e4 {[%clk 0:03:00]}  c6 {[%clk 0:02:59]} 2. d4 {[%clk 0:02:59]}  d5 {[%clk 0:02:59]} 3. Nc3 {[%clk 0:02:59]}  dxe4 {[%clk 0:02:59]} 4. Nxe4 {[%clk 0:03:00]}  Nf6 {[%clk 0:02:58]} 5. Nxf6+ {[%clk 0:03:00]}  exf6 {[%clk 0:02:59]} 6. Nf3 {[%clk 0:03:00]}  Bd6 {[%clk 0:02:59]} 7. Be2 {[%clk 0:03:00]}  O-O {[%clk 0:02:58]} 8. O-O {[%clk 0:03:00]}  Re8 {[%clk 0:02:50]} 9. c4 {[%clk 0:03:00]}  Nd7 {[%clk 0:02:50]} 10. Bd3 {[%clk 0:02:53]}  Nf8 {[%clk 0:02:48]} 11. Qc2 {[%clk 0:02:47]}  Ng6 {[%clk 0:02:46]} 12. Be3 {[%clk 0:02:36]}  Bg4 {[%clk 0:02:43]} 13. Nd2 {[%clk 0:02:35]}  Qc7 {[%clk 0:02:31]} 14. h3 {[%clk 0:02:35]}  Bd7 {[%clk 0:02:29]} 15. Rfe1 {[%clk 0:02:21]}  Bf4 {[%clk 0:02:22]} 16. Nf3 {[%clk 0:02:19]}  Bxe3 {[%clk 0:02:10]} 17. Rxe3 {[%clk 0:02:19]}  Rxe3 {[%clk 0:02:06]} 18. fxe3 {[%clk 0:02:20]}  c5 {[%clk 0:02:05]} 19. Re1 {[%clk 0:02:15]}  Re8 {[%clk 0:02:01]} 20. Kf2 {[%clk 0:02:13]}  b6 {[%clk 0:01:55]} 21. a3 {[%clk 0:02:12]}  Bc6 {[%clk 0:01:50]} 22. d5 {[%clk 0:02:09]}  Bd7 {[%clk 0:01:48]} 23. b4 {[%clk 0:02:05]}  Qd6 {[%clk 0:01:31]} 24. b5 {[%clk 0:01:59]}  a6 {[%clk 0:01:25]} 25. a4 {[%clk 0:01:59]}  axb5 {[%clk 0:01:22]} 26. axb5 {[%clk 0:01:58]}  Ra8 {[%clk 0:01:23]} 27. Bxg6 {[%clk 0:01:52]}  hxg6 {[%clk 0:01:22]} 28. e4 {[%clk 0:01:48]}  Ra5 {[%clk 0:01:14]} 29. Qb2 {[%clk 0:01:45]}  Qb8 {[%clk 0:01:10]} 30. Ra1 {[%clk 0:01:39]}  Qa8 {[%clk 0:01:09]} 31. Rxa5 {[%clk 0:01:37]}  Qxa5 {[%clk 0:01:10]} 32. e5 {[%clk 0:01:34]}  fxe5 {[%clk 0:01:06]} 33. Nxe5 {[%clk 0:01:31]}  Bf5 {[%clk 0:01:05]} 34. d6 {[%clk 0:01:30]}  f6 {[%clk 0:00:59]} 35. Nc6 {[%clk 0:01:09]}  Qa8 {[%clk 0:00:55]} 36. Qd2 {[%clk 0:01:01]}  Bd7 {[%clk 0:00:52]} 37. Qd5+ {[%clk 0:01:01]}  Kh7 {[%clk 0:00:52]} 38. h4 {[%clk 0:00:59]}  Qa2+ {[%clk 0:00:50]} 39. Kg3 {[%clk 0:00:57]}  Qa3+ {[%clk 0:00:49]} 40. Kh2 {[%clk 0:00:57]}  Qc1 {[%clk 0:00:48]} 41. Qd3 {[%clk 0:00:42]}  Qf4+ {[%clk 0:00:45]} 42. g3 {[%clk 0:00:42]}  Qf2+ {[%clk 0:00:43]} 43. Kh1 {[%clk 0:00:42]}  Bg4 {[%clk 0:00:38]} 44. Qf1 {[%clk 0:00:30]}  Bf3+ {[%clk 0:00:37]} 0-1


[Site "https://www.chess.com"]

[Event "Titled Tuesday Blitz March 22 Early 2022"]
[White "Molina, Roberto Junio Brito"]
[Black "Williams, Simon K"]
[WhiteFideId "2109450"]
[BlackFideId "404454"]
[WhiteElo "2432"]
[BlackElo "2468"]
[Result "1-0"]
[Round "09"]
[TimeControl "180+1"]
[Date "2022.03.22"]
[WhiteClock "0:00:28"]
[BlackClock "0:00:03"]

1. d4 {[%clk 0:03:00]}  e6 {[%clk 0:02:59]} 2. Nf3 {[%clk 0:03:00]}  f5 {[%clk 0:02:59]} 3. g3 {[%clk 0:03:00]}  Nf6 {[%clk 0:02:59]} 4. Bg2 {[%clk 0:03:01]}  Be7 {[%clk 0:02:59]} 5. O-O {[%clk 0:03:02]}  O-O {[%clk 0:02:59]} 6. c4 {[%clk 0:03:02]}  d6 {[%clk 0:03:00]} 7. Nc3 {[%clk 0:03:03]}  Ne4 {[%clk 0:02:59]} 8. Nxe4 {[%clk 0:03:03]}  fxe4 {[%clk 0:02:59]} 9. Nd2 {[%clk 0:03:01]}  d5 {[%clk 0:03:00]} 10. f3 {[%clk 0:02:52]}  Nc6 {[%clk 0:02:59]} 11. fxe4 {[%clk 0:02:43]}  Rxf1+ {[%clk 0:02:56]} 12. Bxf1 {[%clk 0:02:41]}  Nxd4 {[%clk 0:02:45]} 13. e3 {[%clk 0:02:39]}  Nc6 {[%clk 0:02:29]} 14. cxd5 {[%clk 0:02:39]}  exd5 {[%clk 0:02:25]} 15. exd5 {[%clk 0:02:40]}  Ne5 {[%clk 0:02:24]} 16. e4 {[%clk 0:02:37]}  Bc5+ {[%clk 0:02:21]} 17. Kh1 {[%clk 0:02:28]}  Ng4 {[%clk 0:02:05]} 18. Qc2 {[%clk 0:02:23]}  Nf2+ {[%clk 0:01:57]} 19. Kg1 {[%clk 0:02:18]}  Nxe4+ {[%clk 0:01:16]} 20. Kg2 {[%clk 0:02:11]}  Qd7 {[%clk 0:00:56]} 21. Qxe4 {[%clk 0:02:02]}  Qf7 {[%clk 0:00:47]} 22. Qf4 {[%clk 0:01:42]}  Qxd5+ {[%clk 0:00:45]} 23. Nf3 {[%clk 0:01:39]}  Be6 {[%clk 0:00:41]} 24. b3 {[%clk 0:01:22]}  b5 {[%clk 0:00:18]} 25. Bxb5 {[%clk 0:01:11]}  Qh5 {[%clk 0:00:09]} 26. Bc4 {[%clk 0:00:58]}  Qh3+ {[%clk 0:00:09]} 27. Kh1 {[%clk 0:00:58]}  Rf8 {[%clk 0:00:06]} 28. Ng5 {[%clk 0:00:28]}  Bxc4 {[%clk 0:00:03]} 29. Qxc4+ {[%clk 0:00:28]}  Kh8 {[%clk 0:00:03]} 1-0


[Site "https://www.chess.com"]

[Event "Titled Tuesday Blitz March 22 Early 2022"]
[White "Myshakov, Fyodor"]
[Black "Avazkhonov, Alikhon"]
[WhiteFideId "14111284"]
[BlackFideId "14208504"]
[WhiteElo "2310"]
[BlackElo "1739"]
[Result "0-1"]
[Round "09"]
[TimeControl "180+1"]
[Date "2022.03.22"]
[WhiteClock "0:00:24"]
[BlackClock "0:00:06"]

1. c4 {[%clk 0:02:59]}  e5 {[%clk 0:02:45]} 2. Nc3 {[%clk 0:02:59]}  d6 {[%clk 0:02:45]} 3. Nf3 {[%clk 0:02:59]}  f5 {[%clk 0:02:44]} 4. g3 {[%clk 0:02:59]}  Nf6 {[%clk 0:02:42]} 5. Bg2 {[%clk 0:02:59]}  Be7 {[%clk 0:02:42]} 6. O-O {[%clk 0:02:59]}  O-O {[%clk 0:02:40]} 7. d3 {[%clk 0:02:59]}  c6 {[%clk 0:02:38]} 8. Rb1 {[%clk 0:03:00]}  a5 {[%clk 0:02:36]} 9. a3 {[%clk 0:03:00]}  Na6 {[%clk 0:02:36]} 10. b4 {[%clk 0:03:00]}  Nc7 {[%clk 0:02:33]} 11. b5 {[%clk 0:03:00]}  Ne6 {[%clk 0:02:30]} 12. bxc6 {[%clk 0:03:00]}  bxc6 {[%clk 0:02:29]} 13. Nd2 {[%clk 0:03:00]}  Bd7 {[%clk 0:02:26]} 14. e3 {[%clk 0:02:56]}  Kh8 {[%clk 0:01:59]} 15. Re1 {[%clk 0:02:56]}  Qe8 {[%clk 0:01:57]} 16. f4 {[%clk 0:02:54]}  g5 {[%clk 0:01:50]} 17. fxe5 {[%clk 0:02:53]}  dxe5 {[%clk 0:01:50]} 18. Nf3 {[%clk 0:02:53]}  Bd6 {[%clk 0:01:04]} 19. Bb2 {[%clk 0:02:47]}  g4 {[%clk 0:00:57]} 20. Nd2 {[%clk 0:02:47]}  Ng5 {[%clk 0:00:56]} 21. Na4 {[%clk 0:02:45]}  Rb8 {[%clk 0:00:54]} 22. c5 {[%clk 0:02:44]}  Bc7 {[%clk 0:00:54]} 23. d4 {[%clk 0:02:44]}  e4 {[%clk 0:00:46]} 24. d5 {[%clk 0:02:31]}  cxd5 {[%clk 0:00:41]} 25. c6 {[%clk 0:02:31]}  Bxc6 {[%clk 0:00:30]} 26. Qc2 {[%clk 0:02:31]}  Rc8 {[%clk 0:00:18]} 27. Nc5 {[%clk 0:02:28]}  Be5 {[%clk 0:00:15]} 28. Ndb3 {[%clk 0:02:23]}  a4 {[%clk 0:00:11]} 29. Nd4 {[%clk 0:02:22]}  Qe7 {[%clk 0:00:11]} 30. Nxf5 {[%clk 0:02:22]}  Qe8 {[%clk 0:00:09]} 31. Ba1 {[%clk 0:02:05]}  Bxa1 {[%clk 0:00:07]} 32. Rxa1 {[%clk 0:02:05]}  Qe5 {[%clk 0:00:08]} 33. Nd4 {[%clk 0:01:56]}  Nf3+ {[%clk 0:00:08]} 34. Bxf3 {[%clk 0:01:55]}  gxf3 {[%clk 0:00:09]} 35. Nce6 {[%clk 0:01:50]}  Bd7 {[%clk 0:00:08]} 36. Nxf8 {[%clk 0:01:32]}  Rxc2 {[%clk 0:00:05]} 37. Nxc2 {[%clk 0:01:32]}  Bh3 {[%clk 0:00:05]} 38. Rab1 {[%clk 0:01:23]}  Ng4 {[%clk 0:00:05]} 39. Rec1 {[%clk 0:01:12]}  f2+ {[%clk 0:00:05]} 40. Kh1 {[%clk 0:01:13]}  Qf6 {[%clk 0:00:05]} 41. Nd4 {[%clk 0:01:12]}  Qxf8 {[%clk 0:00:06]} 42. Rf1 {[%clk 0:00:27]}  Bxf1 {[%clk 0:00:05]} 43. Rxf1 {[%clk 0:00:24]}  Nxe3 {[%clk 0:00:05]} 44. Rxf2 {[%clk 0:00:24]}  Qxf2 {[%clk 0:00:06]} 0-1


[Site "https://www.chess.com"]

[Event "Titled Tuesday Blitz March 22 Early 2022"]
[White "Narayanan.S.L"]
[Black "Vakhlamov, Igor L."]
[WhiteFideId "5058422"]
[BlackFideId "24126748"]
[WhiteElo "2494"]
[BlackElo "2401"]
[Result "1-0"]
[Round "09"]
[TimeControl "180+1"]
[Date "2022.03.22"]
[WhiteClock "0:02:52"]
[BlackClock "0:01:59"]

1. c4 {[%clk 0:03:00]}  Nf6 {[%clk 0:02:20]} 2. Nc3 {[%clk 0:02:59]}  c5 {[%clk 0:02:20]} 3. Nf3 {[%clk 0:02:59]}  Nc6 {[%clk 0:02:10]} 4. d4 {[%clk 0:02:58]}  cxd4 {[%clk 0:02:11]} 5. Nxd4 {[%clk 0:02:58]}  g6 {[%clk 0:02:11]} 6. g3 {[%clk 0:02:57]}  Bg7 {[%clk 0:02:11]} 7. Bg2 {[%clk 0:02:58]}  O-O {[%clk 0:02:10]} 8. O-O {[%clk 0:02:59]}  Qa5 {[%clk 0:02:07]} 9. e3 {[%clk 0:02:57]}  d6 {[%clk 0:02:05]} 10. Bd2 {[%clk 0:02:56]}  Bd7 {[%clk 0:02:04]} 11. Nd5 {[%clk 0:02:53]}  Rfc8 {[%clk 0:01:59]} 12. Bxa5 {[%clk 0:02:52]} 1-0


[Site "https://www.chess.com"]

[Event "Titled Tuesday Blitz March 22 Early 2022"]
[White "Oganian, Miran"]
[Black "Neiksans, Arturs"]
[WhiteFideId "4122488"]
[BlackFideId "11601388"]
[WhiteElo "2357"]
[BlackElo "2447"]
[Result "1/2-1/2"]
[Round "09"]
[TimeControl "180+1"]
[Date "2022.03.22"]
[WhiteClock "0:00:06"]
[BlackClock "0:00:12"]

1. d4 {[%clk 0:02:58]}  f5 {[%clk 0:02:58]} 2. g4 {[%clk 0:02:57]}  fxg4 {[%clk 0:02:58]} 3. e4 {[%clk 0:02:57]}  d5 {[%clk 0:02:45]} 4. Nc3 {[%clk 0:02:57]}  dxe4 {[%clk 0:02:44]} 5. Nxe4 {[%clk 0:02:57]}  Nf6 {[%clk 0:02:43]} 6. Bg2 {[%clk 0:02:57]}  Nc6 {[%clk 0:02:37]} 7. c3 {[%clk 0:02:57]}  e5 {[%clk 0:02:36]} 8. Ne2 {[%clk 0:02:34]}  exd4 {[%clk 0:02:33]} 9. O-O {[%clk 0:02:33]}  dxc3 {[%clk 0:02:30]} 10. Qb3 {[%clk 0:02:32]}  Nxe4 {[%clk 0:02:22]} 11. Bxe4 {[%clk 0:02:32]}  Bd6 {[%clk 0:02:20]} 12. Ng3 {[%clk 0:02:14]}  Ne5 {[%clk 0:02:09]} 13. Bf4 {[%clk 0:01:41]}  Qf6 {[%clk 0:01:51]} 14. Nh5 {[%clk 0:01:40]}  Qe7 {[%clk 0:01:47]} 15. Rae1 {[%clk 0:01:24]}  g6 {[%clk 0:01:40]} 16. Bxb7 {[%clk 0:01:01]}  Bxb7 {[%clk 0:01:38]} 17. Qxb7 {[%clk 0:01:01]}  O-O {[%clk 0:01:38]} 18. Bxe5 {[%clk 0:00:57]}  Bxe5 {[%clk 0:01:26]} 19. Qd5+ {[%clk 0:00:56]}  Qf7 {[%clk 0:01:26]} 20. Rxe5 {[%clk 0:00:51]}  Qxd5 {[%clk 0:01:24]} 21. Rxd5 {[%clk 0:00:52]}  gxh5 {[%clk 0:01:09]} 22. bxc3 {[%clk 0:00:52]}  Rf3 {[%clk 0:01:04]} 23. Re1 {[%clk 0:00:49]}  Raf8 {[%clk 0:01:01]} 24. Re7 {[%clk 0:00:43]}  R8f7 {[%clk 0:00:56]} 25. Rxf7 {[%clk 0:00:41]}  Kxf7 {[%clk 0:00:56]} 26. Rxh5 {[%clk 0:00:40]}  Rxc3 {[%clk 0:00:52]} 27. Ra5 {[%clk 0:00:33]}  Kg6 {[%clk 0:00:49]} 28. Rxa7 {[%clk 0:00:33]}  h5 {[%clk 0:00:50]} 29. a4 {[%clk 0:00:30]}  h4 {[%clk 0:00:50]} 30. a5 {[%clk 0:00:19]}  Rc1+ {[%clk 0:00:43]} 31. Kg2 {[%clk 0:00:19]}  h3+ {[%clk 0:00:44]} 32. Kg3 {[%clk 0:00:18]}  Kg5 {[%clk 0:00:44]} 33. f4+ {[%clk 0:00:16]}  Kf5 {[%clk 0:00:44]} 34. a6 {[%clk 0:00:07]}  Rc2 {[%clk 0:00:37]} 35. Ra8 {[%clk 0:00:06]}  Rg2+ {[%clk 0:00:37]} 36. Kh4 {[%clk 0:00:06]}  Rxh2 {[%clk 0:00:38]} 37. a7 {[%clk 0:00:06]}  Ra2 {[%clk 0:00:37]} 38. Rf8+ {[%clk 0:00:07]}  Ke4 {[%clk 0:00:37]} 39. Kxg4 {[%clk 0:00:06]}  h2 {[%clk 0:00:33]} 40. Re8+ {[%clk 0:00:06]}  Kd4 {[%clk 0:00:33]} 41. Rh8 {[%clk 0:00:07]}  Rxa7 {[%clk 0:00:30]} 42. Rxh2 {[%clk 0:00:08]}  c5 {[%clk 0:00:30]} 43. f5 {[%clk 0:00:07]}  c4 {[%clk 0:00:30]} 44. f6 {[%clk 0:00:06]}  Ra1 {[%clk 0:00:22]} 45. Rf2 {[%clk 0:00:05]}  Ra8 {[%clk 0:00:18]} 46. f7 {[%clk 0:00:05]}  Rf8 {[%clk 0:00:18]} 47. Kg5 {[%clk 0:00:05]}  c3 {[%clk 0:00:17]} 48. Kf6 {[%clk 0:00:05]}  Kd3 {[%clk 0:00:17]} 49. Rf3+ {[%clk 0:00:05]}  Kd2 {[%clk 0:00:17]} 50. Rf2+ {[%clk 0:00:05]}  Ke3 {[%clk 0:00:17]} 51. Rg2 {[%clk 0:00:04]}  Kd3 {[%clk 0:00:16]} 52. Rg3+ {[%clk 0:00:04]}  Kd4 {[%clk 0:00:16]} 53. Rg2 {[%clk 0:00:04]}  Ke3 {[%clk 0:00:13]} 54. Rh2 {[%clk 0:00:04]}  Kd3 {[%clk 0:00:12]} 55. Rh3+ {[%clk 0:00:04]}  Kc4 {[%clk 0:00:13]} 56. Rh2 {[%clk 0:00:05]}  Kb3 {[%clk 0:00:14]} 57. Rh3 {[%clk 0:00:05]}  Kb2 {[%clk 0:00:14]} 58. Ke7 {[%clk 0:00:05]}  Ra8 {[%clk 0:00:13]} 59. Rxc3 {[%clk 0:00:05]}  Kxc3 {[%clk 0:00:12]} 60. f8=Q {[%clk 0:00:06]}  Rxf8 {[%clk 0:00:12]} 61. Kxf8 {[%clk 0:00:06]} 1/2-1/2


[Site "https://www.chess.com"]

[Event "Titled Tuesday Blitz March 22 Early 2022"]
[White "Omariev, Maksim"]
[Black "Borodavkin, Anatoly"]
[WhiteFideId "4193423"]
[BlackFideId "14150662"]
[WhiteElo "2503"]
[BlackElo "1845"]
[Result "1-0"]
[Round "09"]
[TimeControl "180+1"]
[Date "2022.03.22"]
[WhiteClock "0:01:06"]
[BlackClock "0:00:06"]

1. g4 {[%clk 0:03:00]}  e5 {[%clk 0:02:54]} 2. Bg2 {[%clk 0:03:00]}  d6 {[%clk 0:02:54]} 3. h3 {[%clk 0:03:00]}  Nc6 {[%clk 0:02:54]} 4. c3 {[%clk 0:02:59]}  Be6 {[%clk 0:02:53]} 5. d4 {[%clk 0:02:59]}  exd4 {[%clk 0:02:52]} 6. cxd4 {[%clk 0:03:00]}  d5 {[%clk 0:02:53]} 7. Nc3 {[%clk 0:02:59]}  Bb4 {[%clk 0:02:51]} 8. Bf4 {[%clk 0:02:58]}  Nge7 {[%clk 0:02:48]} 9. e3 {[%clk 0:02:57]}  Qd7 {[%clk 0:02:41]} 10. Ne2 {[%clk 0:02:56]}  h5 {[%clk 0:02:29]} 11. g5 {[%clk 0:02:50]}  h4 {[%clk 0:02:24]} 12. Qb3 {[%clk 0:02:50]}  O-O {[%clk 0:02:05]} 13. O-O-O {[%clk 0:02:42]}  Bxc3 {[%clk 0:01:44]} 14. Nxc3 {[%clk 0:02:40]}  Na5 {[%clk 0:01:43]} 15. Qb5 {[%clk 0:02:26]}  Qxb5 {[%clk 0:01:35]} 16. Nxb5 {[%clk 0:02:26]}  c6 {[%clk 0:01:34]} 17. Nc7 {[%clk 0:02:22]}  Rac8 {[%clk 0:01:27]} 18. Nxe6 {[%clk 0:02:18]}  fxe6 {[%clk 0:01:26]} 19. Rhf1 {[%clk 0:02:02]}  Nf5 {[%clk 0:01:19]} 20. b3 {[%clk 0:01:45]}  c5 {[%clk 0:01:17]} 21. dxc5 {[%clk 0:01:44]}  Rxc5+ {[%clk 0:01:14]} 22. Kb2 {[%clk 0:01:45]}  Rfc8 {[%clk 0:01:06]} 23. Rc1 {[%clk 0:01:43]}  Rxc1 {[%clk 0:01:01]} 24. Rxc1 {[%clk 0:01:44]}  Rxc1 {[%clk 0:01:00]} 25. Kxc1 {[%clk 0:01:45]}  Nc6 {[%clk 0:00:58]} 26. Kd2 {[%clk 0:01:36]}  Kh7 {[%clk 0:00:50]} 27. Bc7 {[%clk 0:01:34]}  Kg6 {[%clk 0:00:47]} 28. f4 {[%clk 0:01:34]}  Ng3 {[%clk 0:00:41]} 29. a3 {[%clk 0:01:26]}  Kf5 {[%clk 0:00:34]} 30. Bf3 {[%clk 0:01:23]}  Ne4+ {[%clk 0:00:20]} 31. Kc2 {[%clk 0:01:23]}  Nc5 {[%clk 0:00:19]} 32. b4 {[%clk 0:01:17]}  Na6 {[%clk 0:00:19]} 33. Bd6 {[%clk 0:01:17]}  b5 {[%clk 0:00:15]} 34. Kd3 {[%clk 0:01:16]}  Nd8 {[%clk 0:00:15]} 35. Be7 {[%clk 0:01:07]}  Nc6 {[%clk 0:00:14]} 36. Bf8 {[%clk 0:01:07]}  Kg6 {[%clk 0:00:14]} 37. Bg4 {[%clk 0:01:07]}  Nc7 {[%clk 0:00:11]} 38. Bd6 {[%clk 0:01:07]}  Ne8 {[%clk 0:00:12]} 39. Bc5 {[%clk 0:01:07]}  e5 {[%clk 0:00:09]} 40. Bd7 {[%clk 0:01:06]}  exf4 {[%clk 0:00:07]} 41. Bxe8+ {[%clk 0:01:05]}  Kxg5 {[%clk 0:00:07]} 42. Bxc6 {[%clk 0:01:06]}  f3 {[%clk 0:00:06]} 43. Bxd5 {[%clk 0:01:06]}  f2 {[%clk 0:00:06]} 44. Ke2 {[%clk 0:01:07]}  Kf5 {[%clk 0:00:06]} 45. Kxf2 {[%clk 0:01:07]}  Ke5 {[%clk 0:00:07]} 46. e4 {[%clk 0:01:07]}  g5 {[%clk 0:00:07]} 47. Ke3 {[%clk 0:01:08]}  a6 {[%clk 0:00:06]} 48. Bb7 {[%clk 0:01:07]}  g4 {[%clk 0:00:06]} 49. hxg4 {[%clk 0:01:07]}  h3 {[%clk 0:00:06]} 50. Bd4+ {[%clk 0:01:07]}  Kd6 {[%clk 0:00:06]} 51. e5+ {[%clk 0:01:06]}  Kc7 {[%clk 0:00:06]} 52. Bd5 {[%clk 0:01:06]} 1-0


[Site "https://www.chess.com"]

[Event "Titled Tuesday Blitz March 22 Early 2022"]
[White "Osmonbekov, Talaibek"]
[Black "Sarkar, Justin"]
[WhiteFideId "2017253"]
[BlackFideId "2010011"]
[WhiteElo "2135"]
[BlackElo "2038"]
[Result "0-1"]
[Round "09"]
[TimeControl "180+1"]
[Date "2022.03.22"]
[WhiteClock "0:00:03"]
[BlackClock "0:00:07"]

1. d4 {[%clk 0:03:00]}  Nf6 {[%clk 0:02:54]} 2. Nc3 {[%clk 0:03:00]}  d5 {[%clk 0:02:48]} 3. Bf4 {[%clk 0:03:00]}  e6 {[%clk 0:02:47]} 4. e3 {[%clk 0:03:00]}  Bd6 {[%clk 0:02:42]} 5. Nf3 {[%clk 0:03:00]}  O-O {[%clk 0:02:39]} 6. Bd3 {[%clk 0:02:59]}  c5 {[%clk 0:02:25]} 7. dxc5 {[%clk 0:02:59]}  Bxc5 {[%clk 0:02:22]} 8. O-O {[%clk 0:02:58]}  Be7 {[%clk 0:02:01]} 9. e4 {[%clk 0:02:56]}  dxe4 {[%clk 0:01:52]} 10. Nxe4 {[%clk 0:02:57]}  Nh5 {[%clk 0:01:49]} 11. Bxb8 {[%clk 0:02:34]}  Rxb8 {[%clk 0:01:50]} 12. Nfg5 {[%clk 0:02:34]}  Nf4 {[%clk 0:01:27]} 13. Qg4 {[%clk 0:02:15]}  Nxd3 {[%clk 0:01:20]} 14. cxd3 {[%clk 0:02:12]}  f5 {[%clk 0:01:15]} 15. Qh5 {[%clk 0:02:07]}  h6 {[%clk 0:01:14]} 16. Nf3 {[%clk 0:01:40]}  fxe4 {[%clk 0:01:12]} 17. dxe4 {[%clk 0:01:41]}  Bd7 {[%clk 0:01:05]} 18. Rad1 {[%clk 0:01:40]}  Qe8 {[%clk 0:01:01]} 19. Qg4 {[%clk 0:01:26]}  Bf6 {[%clk 0:00:51]} 20. e5 {[%clk 0:01:22]}  Be7 {[%clk 0:00:47]} 21. Rd2 {[%clk 0:01:21]}  Bc5 {[%clk 0:00:40]} 22. b4 {[%clk 0:01:13]}  Bb6 {[%clk 0:00:31]} 23. Rfd1 {[%clk 0:00:49]}  Bc6 {[%clk 0:00:28]} 24. Rd6 {[%clk 0:00:44]}  Bxf3 {[%clk 0:00:27]} 25. gxf3 {[%clk 0:00:43]}  Rd8 {[%clk 0:00:20]} 26. Rxd8 {[%clk 0:00:37]}  Bxd8 {[%clk 0:00:19]} 27. Rd6 {[%clk 0:00:38]}  Qf7 {[%clk 0:00:17]} 28. Qxe6 {[%clk 0:00:37]}  Qxe6 {[%clk 0:00:14]} 29. Rxe6 {[%clk 0:00:38]}  Rxf3 {[%clk 0:00:14]} 30. Kg2 {[%clk 0:00:38]}  Rf8 {[%clk 0:00:14]} 31. Rd6 {[%clk 0:00:36]}  Bb6 {[%clk 0:00:12]} 32. f3 {[%clk 0:00:34]}  Rf5 {[%clk 0:00:11]} 33. a4 {[%clk 0:00:18]}  Rxe5 {[%clk 0:00:09]} 34. a5 {[%clk 0:00:18]}  Bc7 {[%clk 0:00:08]} 35. Rd7 {[%clk 0:00:18]}  Re2+ {[%clk 0:00:08]} 36. Kf1 {[%clk 0:00:15]}  Rc2 {[%clk 0:00:07]} 37. h4 {[%clk 0:00:13]}  b6 {[%clk 0:00:07]} 38. a6 {[%clk 0:00:11]}  b5 {[%clk 0:00:07]} 39. Rd5 {[%clk 0:00:08]}  Bb6 {[%clk 0:00:07]} 40. Rxb5 {[%clk 0:00:08]}  Ra2 {[%clk 0:00:07]} 41. h5 {[%clk 0:00:02]}  Rxa6 {[%clk 0:00:07]} 42. Ke2 {[%clk 0:00:02]}  Ra2+ {[%clk 0:00:07]} 43. Kd3 {[%clk 0:00:03]}  Rg2 {[%clk 0:00:07]} 0-1


[Site "https://www.chess.com"]

[Event "Titled Tuesday Blitz March 22 Early 2022"]
[White "Popadic, Dragan"]
[Black "Golsta, Madara"]
[WhiteFideId "913650"]
[BlackFideId "11607386"]
[WhiteElo "2222"]
[BlackElo "1997"]
[Result "1-0"]
[Round "09"]
[TimeControl "180+1"]
[Date "2022.03.22"]
[WhiteClock "0:00:42"]
[BlackClock "0:00:11"]

1. e4 {[%clk 0:02:59]}  c5 {[%clk 0:02:35]} 2. Nc3 {[%clk 0:02:58]}  d6 {[%clk 0:02:34]} 3. f4 {[%clk 0:02:57]}  g6 {[%clk 0:02:33]} 4. Nf3 {[%clk 0:02:57]}  Bg7 {[%clk 0:02:32]} 5. Bc4 {[%clk 0:02:57]}  Nc6 {[%clk 0:02:32]} 6. d3 {[%clk 0:02:56]}  e6 {[%clk 0:02:30]} 7. O-O {[%clk 0:02:56]}  Nge7 {[%clk 0:02:30]} 8. Qe1 {[%clk 0:02:55]}  O-O {[%clk 0:02:24]} 9. f5 {[%clk 0:02:55]}  gxf5 {[%clk 0:02:02]} 10. Qh4 {[%clk 0:02:53]}  Ng6 {[%clk 0:01:48]} 11. Qh5 {[%clk 0:02:53]}  Nd4 {[%clk 0:01:22]} 12. Ng5 {[%clk 0:02:19]}  h6 {[%clk 0:01:21]} 13. Nxf7 {[%clk 0:02:17]}  Rxf7 {[%clk 0:01:06]} 14. Qxg6 {[%clk 0:02:16]}  Qf6 {[%clk 0:00:58]} 15. Qh5 {[%clk 0:01:59]}  Nxc2 {[%clk 0:00:33]} 16. Rb1 {[%clk 0:01:57]}  Nd4 {[%clk 0:00:32]} 17. Be3 {[%clk 0:01:48]}  Nc2 {[%clk 0:00:28]} 18. Bd2 {[%clk 0:01:36]}  a6 {[%clk 0:00:26]} 19. a4 {[%clk 0:01:35]}  Qd4+ {[%clk 0:00:19]} 20. Kh1 {[%clk 0:01:33]}  Ne3 {[%clk 0:00:19]} 21. Bxe3 {[%clk 0:01:14]}  Qxe3 {[%clk 0:00:20]} 22. exf5 {[%clk 0:01:11]}  d5 {[%clk 0:00:20]} 23. Nxd5 {[%clk 0:00:52]}  exd5 {[%clk 0:00:14]} 24. Bxd5 {[%clk 0:00:52]}  Qe7 {[%clk 0:00:13]} 25. f6 {[%clk 0:00:52]}  Bxf6 {[%clk 0:00:11]} 26. Rbe1 {[%clk 0:00:42]} 1-0


[Site "https://www.chess.com"]

[Event "Titled Tuesday Blitz March 22 Early 2022"]
[White "Pranav, V"]
[Black "Yeletsky, Ivan"]
[WhiteFideId "25060783"]
[BlackFideId "24180327"]
[WhiteElo "2349"]
[BlackElo "2303"]
[Result "0-1"]
[Round "09"]
[TimeControl "180+1"]
[Date "2022.03.22"]
[WhiteClock "0:00:59"]
[BlackClock "0:01:29"]

1. e4 {[%clk 0:03:00]}  d6 {[%clk 0:02:59]} 2. d4 {[%clk 0:03:00]}  Nf6 {[%clk 0:02:58]} 3. Nc3 {[%clk 0:03:00]}  g6 {[%clk 0:02:58]} 4. Bg5 {[%clk 0:02:59]}  h6 {[%clk 0:02:58]} 5. Bh4 {[%clk 0:02:59]}  c6 {[%clk 0:02:54]} 6. f4 {[%clk 0:02:58]}  b5 {[%clk 0:02:52]} 7. Nf3 {[%clk 0:02:58]}  b4 {[%clk 0:02:52]} 8. Bxf6 {[%clk 0:02:58]}  exf6 {[%clk 0:02:53]} 9. Ne2 {[%clk 0:02:58]}  Qe7 {[%clk 0:02:49]} 10. Ng3 {[%clk 0:02:58]}  h5 {[%clk 0:02:49]} 11. Bd3 {[%clk 0:02:58]}  h4 {[%clk 0:02:49]} 12. Ne2 {[%clk 0:02:57]}  h3 {[%clk 0:02:50]} 13. g3 {[%clk 0:02:56]}  Bg4 {[%clk 0:02:44]} 14. O-O {[%clk 0:02:56]}  Bg7 {[%clk 0:02:43]} 15. c3 {[%clk 0:02:55]}  bxc3 {[%clk 0:02:41]} 16. bxc3 {[%clk 0:02:56]}  f5 {[%clk 0:02:35]} 17. Qc2 {[%clk 0:02:45]}  fxe4 {[%clk 0:02:33]} 18. Bxe4 {[%clk 0:02:45]}  d5 {[%clk 0:02:33]} 19. Bxg6 {[%clk 0:02:29]}  Qe3+ {[%clk 0:02:17]} 20. Rf2 {[%clk 0:02:29]}  Bxf3 {[%clk 0:02:17]} 21. Qf5 {[%clk 0:02:28]}  fxg6 {[%clk 0:02:14]} 22. Qxg6+ {[%clk 0:02:17]}  Kf8 {[%clk 0:02:14]} 23. Rb1 {[%clk 0:02:05]}  Bxe2 {[%clk 0:01:42]} 24. Qf5+ {[%clk 0:01:29]}  Kg8 {[%clk 0:01:41]} 25. Re1 {[%clk 0:01:24]}  Bg4 {[%clk 0:01:30]} 26. Qb1 {[%clk 0:01:03]}  Bf5 {[%clk 0:01:30]} 27. Qa1 {[%clk 0:00:59]}  Qd3 {[%clk 0:01:29]} 0-1


[Site "https://www.chess.com"]